bitfinex/quotes_BTCUSD_20250617
["timestamp","ask_amount","ask_price","bid_price","bid_amount"]
[1750165405866,1.35734448,105550.0,105520.0,0.0316]
[1750165405867,0.20847087,105530.0,105520.0,0.0316]
[1750165406083,0.78444563,105530.0,105520.0,0.0634]
[1750165406307,0.19901421,105520.0,105510.0,0.0619]
[1750165406526,0.52214721,105520.0,105510.0,0.0619]
[1750165407247,0.52219427,105520.0,105510.0,0.0619]
[1750165407470,0.61843603,105520.0,105510.0,0.0619]
[1750165408356,0.61843603,105520.0,105510.0,0.0309]
[1750165408817,0.61843603,105520.0,105510.0,0.0659]
[1750165409036,0.81579603,105520.0,105510.0,0.0659]
[1750165409453,0.81579603,105520.0,105510.0,0.0709]
[1750165409672,0.81579603,105520.0,105510.0,0.0629]
[1750165409895,0.83033688,105520.0,105510.0,0.0309]
[1750165410112,0.19903308,105510.0,105500.0,0.37609929]
[1750165410341,1.29608169,105510.0,105500.0,0.31189929]
[1750165410567,0.30475198,105510.0,105500.0,0.58399117]
[1750165410808,0.01895419,105510.0,105500.0,0.59410803]
[1750165411067,0.24482687,105510.0,105500.0,0.91724103]
[1750165411279,0.26826459,105510.0,105500.0,0.59410803]
[1750165411496,0.02843151,105510.0,105500.0,0.92671907]
[1750165411721,0.02852006,105520.0,105510.0,0.28218799]
[1750165411939,0.23696731,105520.0,105510.0,0.28218799]
[1750165412150,0.22749116,105520.0,105510.0,0.28218799]
[1750165412387,0.01899999,105520.0,105510.0,0.28218799]
[1750165412610,4.706e-05,105520.0,105510.0,0.61479813]
[1750165412832,0.00952321,105520.0,105510.0,0.61479813]
[1750165413496,0.01899954,105520.0,105510.0,0.61479813]
[1750165413760,0.06899954,105520.0,105510.0,0.61579813]
[1750165413969,0.07847605,105520.0,105510.0,0.61579813]
[1750165414186,0.05004706,105520.0,105510.0,0.61579813]
[1750165415081,0.05004706,105520.0,105510.0,0.29366513]
[1750165415291,0.05004706,105520.0,105510.0,0.61679813]
[1750165415709,0.05004706,105520.0,105510.0,0.62717847]
[1750165415933,0.05004706,105520.0,105510.0,0.78373847]
[1750165416408,0.05004706,105520.0,105510.0,0.61679813]
[1750165416628,0.05004706,105520.0,105510.0,0.45018513]
[1750165416859,0.05004706,105520.0,105510.0,0.86955989]
[1750165418036,4.706e-05,105520.0,105510.0,1.53269289]
[1750165418280,4.706e-05,105520.0,105510.0,1.37617289]
[1750165418548,4.706e-05,105520.0,105510.0,1.53269289]
[1750165418796,0.07557508,105550.0,105540.0,0.28192577]
[1750165419006,0.11351717,105550.0,105540.0,0.28192577]
[1750165419226,0.11351708,105550.0,105540.0,0.28192577]
[1750165419674,0.34352781,105550.0,105540.0,0.26297669]
[1750165420195,0.15404362,105550.0,105540.0,0.29240076]
[1750165420408,0.35300145,105550.0,105540.0,0.28292631]
[1750165420624,0.39412145,105550.0,105540.0,0.28292631]
[1750165420833,0.39412145,105550.0,105540.0,0.29240085]
[1750165421049,0.38464799,105550.0,105540.0,0.28292631]
[1750165421257,0.38464799,105550.0,105540.0,0.27345159]
[1750165421518,0.19335362,105550.0,105540.0,0.065]
[1750165421729,0.19335362,105550.0,105540.0,0.26397669]
[1750165422423,0.19335362,105550.0,105540.0,0.27345168]
[1750165423744,0.18387944,105550.0,105540.0,0.065]
[1750165423963,0.50701244,105550.0,105540.0,0.2639766]
[1750165424614,0.50701244,105550.0,105540.0,0.0336]
[1750165425046,0.50701244,105550.0,105540.0,0.001]
[1750165425477,0.2801212,105550.0,105540.0,0.001]
[1750165425689,0.6032542,105550.0,105540.0,0.001]
[1750165426822,0.9432542,105550.0,105540.0,0.001]
[1750165428142,1.0060542,105550.0,105540.0,0.001]
[1750165428358,1.0070542,105550.0,105540.0,0.001]
[1750165428801,0.21794639,105530.0,105520.0,0.24793637]
[1750165429011,0.21794639,105530.0,105520.0,0.29948948]
[1750165429258,0.21794639,105530.0,105520.0,0.29001297]
[1750165429485,0.20846784,105540.0,105530.0,0.26897087]
[1750165429697,0.41552586,105540.0,105530.0,0.26897087]
[1750165430145,0.41552586,105540.0,105530.0,0.25949535]
[1750165430368,0.21792586,105540.0,105530.0,0.26897105]
[1750165430588,0.41560586,105540.0,105530.0,0.28792218]
[1750165431261,0.41560586,105540.0,105530.0,0.29739761]
[1750165431492,0.42508085,105540.0,105530.0,0.28792218]
[1750165431973,0.42508085,105540.0,105530.0,0.27844666]
[1750165432223,0.43455593,105540.0,105530.0,0.28792209]
[1750165432442,0.00947445,105540.0,105530.0,0.29739726]
[1750165432668,0.06954398,105540.0,105530.0,0.29739726]
[1750165432885,0.06954398,105540.0,105530.0,0.29839726]
[1750165433327,0.07901825,105540.0,105530.0,0.29839726]
[1750165433548,0.06954344,105540.0,105530.0,0.29839726]
[1750165434004,0.07901825,105540.0,105530.0,0.29839726]
[1750165434193,0.06954344,105540.0,105530.0,0.62153026]
[1750165434408,0.06954344,105540.0,105530.0,0.29839726]
[1750165434840,0.01894881,105540.0,105530.0,0.29839726]
[1750165435049,0.05059436,105540.0,105530.0,0.60627877]
[1750165436316,0.05059436,105540.0,105530.0,0.28314577]
[1750165436517,0.06006881,105540.0,105530.0,0.28314577]
[1750165436654,0.04112,105540.0,105530.0,0.28314577]
[1750165436882,0.05059427,105540.0,105530.0,0.60627877]
[1750165437116,0.06006872,105540.0,105530.0,0.28314577]
[1750165437819,0.01894872,105540.0,105530.0,0.28314577]
[1750165438492,0.00947427,105540.0,105530.0,0.28314577]
[1750165438710,0.01894872,105540.0,105530.0,0.28314577]
[1750165439143,0.01894863,105540.0,105530.0,0.28314577]
[1750165440013,0.02842317,105540.0,105530.0,0.28314577]
[1750165440223,0.02842308,105540.0,105530.0,0.28314577]
[1750165440428,0.40587202,105550.0,105540.0,0.28162586]
[1750165440429,0.40587156,105550.0,105540.0,0.28162586]
[1750165440662,0.55077357,105560.0,105550.0,0.19895765]
[1750165440881,0.87079534,105560.0,105550.0,0.23233095]
[1750165441092,0.87071534,105560.0,105550.0,0.23233095]
[1750165441536,0.86124233,105560.0,105550.0,0.00047312]
[1750165441775,1.26291618,105560.0,105550.0,0.00047312]
[1750165441987,1.26591618,105560.0,105550.0,0.00047312]
[1750165442214,1.26299618,105560.0,105550.0,0.00047312]
[1750165442628,1.26399618,105560.0,105550.0,0.00047312]
[1750165444303,1.26499618,105560.0,105550.0,0.00047312]
[1750165444515,1.31807343,105560.0,105550.0,0.00047312]
[1750165445483,1.34067996,105560.0,105550.0,0.00047312]
[1750165447725,0.96446971,105560.0,105550.0,0.00047312]
[1750165447940,1.28760271,105560.0,105550.0,0.00047312]
[1750165451831,0.96446971,105560.0,105550.0,0.00047312]
[1750165452046,1.28760271,105560.0,105550.0,0.00047312]
[1750165452967,1.28748271,105560.0,105550.0,0.00047312]
[1750165453607,1.38363193,105560.0,105550.0,0.00047312]
[1750165454023,0.96434971,105560.0,105550.0,0.00047312]
[1750165454231,1.28748271,105560.0,105550.0,0.00047312]
[1750165455711,1.22328271,105560.0,105550.0,0.00047312]
[1750165456179,1.06716271,105560.0,105550.0,0.00047312]
[1750165456400,0.52300233,105560.0,105550.0,0.06207312]
[1750165456855,0.32588233,105560.0,105550.0,0.06207312]
[1750165457088,0.52316233,105560.0,105550.0,0.26103095]
[1750165457313,0.52316233,105560.0,105550.0,0.0715473]
[1750165457551,0.52316233,105560.0,105550.0,0.26103095]
[1750165457767,0.52316233,105560.0,105550.0,0.06207312]
[1750165458200,0.32588233,105560.0,105550.0,0.25155677]
[1750165458418,0.52312233,105560.0,105550.0,0.06207312]
[1750165459312,0.52312233,105560.0,105550.0,0.25155677]
[1750165459536,0.52312233,105560.0,105550.0,0.27050486]
[1750165459964,0.52312233,105560.0,105550.0,0.27997868]
[1750165460194,0.84625533,105560.0,105550.0,0.27997868]
[1750165460407,0.84625533,105560.0,105550.0,0.27050486]
[1750165461082,0.002,105560.0,105550.0,0.28945223]
[1750165461293,0.043,105560.0,105550.0,0.61258523]
[1750165461511,0.002,105560.0,105550.0,0.61258523]
[1750165461729,0.002,105560.0,105550.0,0.28945223]
[1750165461949,0.01994512,105560.0,105550.0,0.28945223]
[1750165462174,0.03789096,105560.0,105550.0,0.28945223]
[1750165462383,0.23557096,105560.0,105550.0,0.29145223]
[1750165462637,0.06941795,105560.0,105550.0,0.29145223]
[1750165463072,0.00947247,105560.0,105550.0,0.29145223]
[1750165463281,0.41562541,105570.0,105560.0,0.28028446]
[1750165463498,0.51186717,105570.0,105560.0,0.27081181]
[1750165463718,0.51186717,105570.0,105560.0,0.28028464]
[1750165463954,0.31298589,105570.0,105560.0,0.29923003]
[1750165464155,0.51190593,105570.0,105560.0,0.28975738]
[1750165464375,0.51290593,105570.0,105560.0,0.27081199]
[1750165464592,0.21886417,105570.0,105560.0,0.28975774]
[1750165464787,0.22833655,105570.0,105560.0,0.28975774]
[1750165464997,0.42609655,105570.0,105560.0,0.28975774]
[1750165465640,0.21770413,105570.0,105560.0,0.28975774]
[1750165465854,0.41658417,105570.0,105560.0,0.28975774]
[1750165466066,0.73971717,105570.0,105560.0,0.280285]
[1750165466712,0.73971717,105570.0,105560.0,0.28975792]
[1750165467635,0.73024524,105570.0,105560.0,0.280285]
[1750165468268,0.0094731,105560.0,105550.0,0.27907796]
[1750165468505,0.2273572,105560.0,105550.0,0.26960459]
[1750165468723,0.04736478,105560.0,105550.0,0.28855187]
[1750165468949,0.23683048,105560.0,105550.0,0.28855187]
[1750165469160,0.22735783,105560.0,105550.0,0.26960459]
[1750165469373,0.22735783,105560.0,105550.0,0.27907832]
[1750165469585,0.22735783,105560.0,105550.0,0.29055196]
[1750165469796,0.22735783,105560.0,105550.0,0.30002551]
[1750165470009,0.22735783,105560.0,105550.0,0.29055196]
[1750165470242,0.22735783,105560.0,105550.0,0.30002551]
[1750165470461,0.22735783,105560.0,105550.0,0.29055196]
[1750165471116,0.02841885,105560.0,105550.0,0.30002551]
[1750165471333,0.22735783,105560.0,105550.0,0.30002551]
[1750165471800,0.22735783,105560.0,105550.0,0.29055196]
[1750165472021,0.27735783,105560.0,105550.0,0.30002551]
[1750165472247,0.08789213,105560.0,105550.0,0.30002551]
[1750165472485,0.27735783,105560.0,105550.0,0.29055196]
[1750165472714,0.58154508,105560.0,105550.0,0.26213095]
[1750165472943,0.57207198,105560.0,105550.0,0.26213095]
[1750165473152,0.37296565,105560.0,105550.0,0.27160504]
[1750165473365,0.37296565,105560.0,105550.0,0.28107895]
[1750165473578,0.37296565,105560.0,105550.0,0.29055277]
[1750165474238,0.37296565,105560.0,105550.0,0.3000265]
[1750165474450,0.37296565,105560.0,105550.0,0.27160504]
[1750165474672,0.37296565,105560.0,105550.0,0.28107904]
[1750165475310,0.37296565,105560.0,105550.0,0.29055286]
[1750165475746,0.14861511,105560.0,105550.0,0.29055286]
[1750165475957,0.33808081,105560.0,105550.0,0.29055286]
[1750165476393,0.33808081,105560.0,105550.0,0.30002659]
[1750165477010,0.1894657,105560.0,105550.0,0.30002659]
[1750165477837,0.19893871,105560.0,105550.0,0.30002596]
[1750165478094,0.20841199,105560.0,105550.0,0.29055241]
[1750165478709,0.01894575,105560.0,105550.0,0.29055241]
[1750165478966,0.02841813,105560.0,105550.0,0.30002596]
[1750165479197,0.81557471,105570.0,105550.0,0.30002596]
[1750165479425,0.00947256,105560.0,105550.0,0.28107787]
[1750165479881,0.83451893,105570.0,105560.0,0.21788473]
[1750165480096,0.84399131,105570.0,105560.0,0.21788473]
[1750165480545,0.84499131,105570.0,105560.0,0.21788473]
[1750165480765,0.83551938,105570.0,105560.0,0.20841199]
[1750165480977,0.83551938,105570.0,105560.0,0.19893898]
[1750165480978,0.82504718,105570.0,105560.0,0.19893898]
[1750165481398,0.82604718,105570.0,105560.0,0.20841217]
[1750165482043,0.82604718,105570.0,105560.0,0.22735828]
[1750165482690,0.10671378,105570.0,105560.0,0.26773111]
[1750165482906,0.32285773,105570.0,105560.0,0.29783048]
[1750165483343,0.09724176,105570.0,105560.0,0.29783048]
[1750165483557,0.042,105570.0,105560.0,0.62096348]
[1750165483790,0.1982,105570.0,105560.0,0.62096348]
[1750165485357,0.001,105570.0,105560.0,0.62096348]
[1750165486651,0.01994342,105570.0,105560.0,0.62096348]
[1750165486891,0.02941518,105570.0,105560.0,0.29783048]
[1750165487103,0.02941509,105570.0,105560.0,0.29783048]
[1750165487320,0.01994325,105570.0,105560.0,0.29783048]
[1750165487540,0.01047158,105570.0,105560.0,0.29783048]
[1750165488224,0.01994333,105570.0,105560.0,0.29783048]
[1750165488443,0.02941526,105570.0,105560.0,0.29783048]
[1750165488658,0.01994333,105570.0,105560.0,0.29783048]
[1750165488847,0.02941517,105570.0,105560.0,0.29783048]
[1750165489060,0.22833503,105570.0,105560.0,0.278885]
[1750165489189,0.56094041,105570.0,105560.0,0.26773057]
[1750165489825,0.37149248,105570.0,105560.0,0.26773003]
[1750165490338,0.52149248,105570.0,105560.0,0.26773003]
[1750165490601,0.17941517,105570.0,105560.0,0.26773003]
[1750165490821,0.32594333,105570.0,105560.0,0.29903003]
[1750165491035,0.33541526,105570.0,105560.0,0.29903003]
[1750165491896,0.32594333,105570.0,105560.0,0.29903003]
[1750165492128,0.33541526,105570.0,105560.0,0.29903003]
[1750165492342,0.32594333,105570.0,105560.0,0.29903003]
[1750165492560,0.33541526,105570.0,105560.0,0.29903003]
[1750165492777,0.32594333,105570.0,105560.0,0.29903003]
[1750165493051,0.16047158,105570.0,105560.0,0.29903003]
[1750165493282,0.32598333,105570.0,105560.0,0.29903003]
[1750165493932,0.30704,105570.0,105560.0,0.29903003]
[1750165494136,0.16651158,105570.0,105560.0,0.29903003]
[1750165494350,0.17598333,105570.0,105560.0,0.29903003]
[1750165495169,0.02941526,105570.0,105560.0,0.29903003]
[1750165495381,0.02941526,105570.0,105560.0,0.62216303]
[1750165495382,0.01994333,105570.0,105560.0,0.62216303]
[1750165495992,0.001,105570.0,105560.0,0.62216303]
[1750165496422,0.001,105570.0,105560.0,0.71840479]
[1750165497052,0.041,105590.0,105580.0,0.2809432]
[1750165497338,0.22727159,105600.0,105590.0,0.21782256]
[1750165497543,0.06940799,105600.0,105590.0,0.28082256]
[1750165497753,0.23483687,105600.0,105590.0,0.24862256]
[1750165497963,0.23483687,105600.0,105580.0,0.2707718]
[1750165497964,0.80351018,105600.0,105580.0,0.2707718]
[1750165498168,0.02841078,105590.0,105580.0,0.28024257]
[1750165498384,0.0284106,105590.0,105580.0,0.43620257]
[1750165498591,0.02855264,105590.0,105580.0,0.43620257]
[1750165499183,0.55056837,105590.0,105580.0,0.18942981]
[1750165499405,0.55056837,105590.0,105580.0,0.19890112]
[1750165499622,0.55056837,105590.0,105580.0,0.20837216]
[1750165499828,0.0190825,105590.0,105580.0,0.26041397]
[1750165500030,0.00961191,105590.0,105580.0,0.61414697]
[1750165500240,0.00014204,105590.0,105580.0,0.61414697]
[1750165502701,0.00961191,105590.0,105580.0,0.61414697]
[1750165502908,0.00014204,105590.0,105580.0,0.44693397]
[1750165503220,0.00014204,105590.0,105580.0,0.77006697]
[1750165503437,0.00014204,105590.0,105580.0,0.86630873]
[1750165505847,0.00014204,105590.0,105580.0,0.86930873]
[1750165506657,0.00014204,105590.0,105580.0,0.54617573]
[1750165506903,0.00014204,105590.0,105580.0,0.86930873]
[1750165507138,0.00014204,105590.0,105580.0,0.87330873]
[1750165511627,0.00014204,105590.0,105580.0,1.21330873]
[1750165513263,0.00014204,105590.0,105580.0,0.73425573]
[1750165513512,0.00014204,105590.0,105580.0,1.05738873]
[1750165513734,0.00014204,105590.0,105580.0,1.21322873]
[1750165513937,0.00014204,105590.0,105580.0,1.05738873]
[1750165514154,0.00014204,105590.0,105580.0,1.21322873]
[1750165514828,0.00014204,105590.0,105580.0,1.05738873]
[1750165515240,0.00014204,105590.0,105580.0,1.21318873]
[1750165517182,0.00014204,105590.0,105580.0,1.05738873]
[1750165517591,0.00014204,105590.0,105580.0,1.21314873]
[1750165521591,0.00014204,105590.0,105580.0,0.89001573]
[1750165521826,0.00014204,105590.0,105580.0,0.60741397]
[1750165522050,0.00014204,105590.0,105580.0,0.26741397]
[1750165522536,0.009612,105590.0,105580.0,0.42317397]
[1750165522773,0.00961191,105590.0,105580.0,0.42317397]
[1750165522976,0.00014204,105590.0,105580.0,0.77860697]
[1750165526192,0.00014204,105590.0,105580.0,0.87484873]
[1750165533982,0.13984375,105610.0,105600.0,0.21780183]
[1750165534155,0.13984375,105610.0,105600.0,0.37356183]
[1750165534657,0.14931246,105610.0,105600.0,0.37356183]
[1750165534887,0.1423055,105610.0,105600.0,0.38303089]
[1750165535122,0.13283679,105610.0,105600.0,0.38303089]
[1750165535448,0.14230541,105610.0,105600.0,0.38303089]
[1750165536481,0.34123986,105610.0,105600.0,0.37356183]
[1750165536721,0.05008965,105610.0,105600.0,0.73846389]
[1750165536975,8.965e-05,105610.0,105600.0,0.73846389]
[1750165537218,8.965e-05,105610.0,105600.0,0.76906389]
[1750165537739,8.965e-05,105610.0,105600.0,0.86530565]
[1750165538196,8.965e-05,105610.0,105600.0,0.86730565]
[1750165538452,8.965e-05,105610.0,105600.0,0.86830565]
[1750165539105,8.965e-05,105610.0,105600.0,0.87800721]
[1750165540637,8.965e-05,105610.0,105600.0,0.55487421]
[1750165540851,8.965e-05,105610.0,105600.0,0.87800721]
[1750165541304,8.965e-05,105610.0,105600.0,0.52423421]
[1750165541547,0.42539587,105610.0,105600.0,0.23027089]
[1750165541774,0.61477268,105610.0,105600.0,0.20186344]
[1750165542037,0.27270307,105610.0,105600.0,0.19239393]
[1750165542266,0.71583607,105610.0,105600.0,0.19239393]
[1750165542490,0.71583607,105610.0,105600.0,0.20186362]
[1750165542710,0.71583607,105610.0,105600.0,0.22080273]
[1750165542934,0.71583607,105610.0,105600.0,0.21133322]
[1750165543144,0.71583607,105610.0,105600.0,0.21033322]
[1750165543868,0.71583607,105610.0,105600.0,0.21980273]
[1750165544081,0.71583607,105610.0,105600.0,0.22727215]
[1750165544297,0.71583607,105610.0,105600.0,0.20833322]
[1750165544533,0.39270307,105610.0,105600.0,0.21780264]
[1750165544750,0.71583607,105610.0,105600.0,0.21780264]
[1750165544965,0.71583607,105610.0,105600.0,0.22727188]
[1750165545428,0.71583607,105610.0,105600.0,0.23674103]
[1750165545644,0.20332608,105610.0,105600.0,0.2367404]
[1750165545864,0.21279461,105610.0,105600.0,0.2367404]
[1750165546285,0.41163941,105610.0,105600.0,0.2367404]
[1750165546965,0.21279461,105610.0,105600.0,0.2367404]
[1750165547460,0.20332599,105610.0,105600.0,0.2367404]
[1750165547688,0.19385782,105610.0,105600.0,0.2367404]
[1750165548146,0.20332617,105610.0,105600.0,0.2367404]
[1750165548827,0.21279479,105610.0,105600.0,0.2367404]
[1750165549083,0.2127947,105610.0,105600.0,0.2367404]
[1750165549334,0.17027782,105610.0,105600.0,0.2367404]
[1750165549857,0.17974626,105610.0,105600.0,0.2367404]
[1750165551575,0.26208341,105610.0,105600.0,0.2367404]
[1750165552170,0.25261479,105610.0,105600.0,0.2367404]
[1750165552374,0.57574779,105610.0,105600.0,0.2367404]
[1750165552584,0.58521641,105610.0,105600.0,0.2367404]
[1750165553346,0.25261479,105610.0,105600.0,0.2367404]
[1750165553548,0.25261488,105610.0,105600.0,0.2367404]
[1750165553758,0.26208359,105610.0,105600.0,0.2367404]
[1750165553966,0.58521659,105610.0,105600.0,0.2367404]
[1750165554175,0.57574788,105610.0,105600.0,0.2367404]
[1750165554970,0.18921479,105610.0,105600.0,0.2367404]
[1750165555437,0.22061479,105610.0,105600.0,0.2367404]
[1750165555640,0.25191479,105610.0,105600.0,0.2367404]
[1750165556050,0.44129079,105610.0,105600.0,0.22727134]
[1750165556255,0.44129079,105610.0,105600.0,0.2367404]
[1750165556462,0.7738925,105610.0,105600.0,0.2367404]
[1750165556645,0.5845165,105610.0,105600.0,0.2367404]
[1750165556974,0.57504779,105610.0,105600.0,0.2367404]
[1750165557188,0.5750477,105610.0,105600.0,0.2367404]
[1750165557823,0.17974608,105610.0,105600.0,0.2367404]
[1750165558023,0.19868305,105610.0,105600.0,0.2367404]
[1750165558228,0.19868296,105610.0,105600.0,0.2367404]
[1750165558429,0.20815158,105610.0,105600.0,0.2367404]
[1750165558636,0.59418458,105610.0,105600.0,0.2367404]
[1750165558863,0.78356121,105610.0,105600.0,0.22727134]
[1750165559481,0.58471641,105610.0,105600.0,0.2367404]
[1750165560396,0.78356112,105610.0,105600.0,0.2367404]
[1750165560613,0.25211479,105610.0,105600.0,0.2367404]
[1750165560845,0.16080965,105610.0,105600.0,0.2367404]
[1750165561055,0.35440305,105610.0,105600.0,0.2367404]
[1750165561281,0.36387176,105610.0,105600.0,0.2367404]
[1750165561495,0.35440305,105610.0,105600.0,0.2367404]
[1750165561710,0.34493434,105610.0,105600.0,0.2367404]
[1750165561931,0.12008965,105610.0,105600.0,0.6212734]
[1750165562143,0.12955764,105610.0,105600.0,0.6212734]
[1750165562400,0.12008965,105610.0,105600.0,0.6212734]
[1750165563507,0.12955764,105610.0,105600.0,0.2991404]
[1750165563716,0.14849389,105610.0,105600.0,0.2684404]
[1750165563936,0.15796224,105610.0,105600.0,0.4261604]
[1750165564121,0.15796224,105610.0,105600.0,0.2704404]
[1750165564824,0.14849389,105610.0,105600.0,0.2704404]
[1750165565478,0.13902581,105610.0,105600.0,0.2704404]
[1750165565898,0.14849416,105610.0,105600.0,0.2704404]
[1750165566109,0.13902581,105610.0,105600.0,0.2704404]
[1750165566551,0.12955764,105610.0,105600.0,0.2704404]
[1750165566767,0.13902581,105610.0,105600.0,0.2704404]
[1750165566977,0.13902581,105610.0,105600.0,0.3009404]
[1750165568092,0.12008965,105610.0,105600.0,0.3009404]
[1750165568750,0.12008965,105610.0,105600.0,0.6240734]
[1750165569175,0.1200423,105610.0,105600.0,0.6240734]
[1750165571622,0.1200423,105610.0,105600.0,0.3009404]
[1750165574408,0.12951038,105610.0,105600.0,0.3009404]
[1750165574640,0.13897864,105610.0,105600.0,0.2704404]
[1750165575570,0.1200423,105610.0,105600.0,0.2679604]
[1750165576052,0.1200423,105610.0,105600.0,0.2997604]
[1750165576538,0.12951047,105610.0,105600.0,0.2997604]
[1750165577407,0.13897873,105610.0,105600.0,0.2997604]
[1750165577626,0.12951047,105610.0,105600.0,0.2997604]
[1750165578116,0.1200423,105610.0,105600.0,0.2997604]
[1750165578559,0.12951038,105610.0,105600.0,0.2997604]
[1750165578771,0.1200423,105610.0,105600.0,0.2997604]
[1750165578969,0.13897846,105610.0,105600.0,0.2997604]
[1750165579594,0.13897837,105610.0,105600.0,0.2997604]
[1750165579840,0.12951038,105610.0,105600.0,0.2997604]
[1750165580311,0.12951038,105610.0,105600.0,0.6228934]
[1750165580542,0.1200423,105610.0,105600.0,0.6228934]
[1750165580767,0.12951029,105610.0,105600.0,0.6228934]
[1750165581008,0.1200423,105610.0,105600.0,0.2997604]
[1750165581272,0.1200423,105610.0,105600.0,0.6228934]
[1750165582422,4.23e-05,105610.0,105600.0,0.6228934]
[1750165583274,4.23e-05,105610.0,105600.0,0.71913516]
[1750165583488,4.23e-05,105610.0,105600.0,1.38226816]
[1750165583701,4.23e-05,105610.0,105600.0,1.05913516]
[1750165589419,4.23e-05,105610.0,105600.0,1.38226816]
[1750165589636,4.23e-05,105610.0,105600.0,1.05913516]
[1750165592607,4.23e-05,105610.0,105600.0,1.38226816]
[1750165592839,4.23e-05,105610.0,105600.0,1.05913516]
[1750165594184,0.00946655,105630.0,105600.0,1.05913516]
[1750165594390,0.62714793,105640.0,105630.0,0.19880714]
[1750165594797,0.62714793,105640.0,105630.0,0.20827405]
[1750165595042,0.69714793,105640.0,105630.0,0.20827405]
[1750165595464,0.69714793,105640.0,105630.0,0.2272076]
[1750165595678,0.69714793,105640.0,105630.0,0.21774087]
[1750165595909,0.69814793,105640.0,105630.0,0.21774087]
[1750165596790,0.37510458,105640.0,105630.0,0.19880714]
[1750165597023,0.28394016,105630.0,105620.0,0.2082778]
[1750165597264,0.08223499,105620.0,105610.0,0.36393618]
[1750165597537,0.39590036,105620.0,105610.0,0.36393618]
[1750165597774,0.37336781,105620.0,105610.0,0.36393618]
[1750165597990,0.01893436,105620.0,105610.0,0.36393618]
[1750165598191,0.01893445,105620.0,105610.0,0.20829618]
[1750165598395,0.01893445,105620.0,105610.0,0.36393618]
[1750165599020,0.00946709,105620.0,105610.0,0.36393618]
[1750165599224,0.00946709,105620.0,105610.0,0.39493618]
[1750165599464,0.40316655,105630.0,105620.0,0.21776096]
[1750165599654,0.40316655,105630.0,105620.0,0.22722823]
[1750165600065,0.08949984,105630.0,105620.0,0.22722823]
[1750165600278,0.40316602,105630.0,105620.0,0.22722823]
[1750165600488,0.45331284,105630.0,105620.0,0.22722823]
[1750165600658,0.41334602,105630.0,105620.0,0.22722823]
[1750165601133,0.42281284,105630.0,105620.0,0.22722823]
[1750165601333,0.41334602,105630.0,105620.0,0.22722823]
[1750165601721,0.09021293,105630.0,105620.0,0.22722823]
[1750165601928,0.41334593,105630.0,105620.0,0.22722823]
[1750165602335,0.0104662,105630.0,105620.0,0.22722823]
[1750165602562,0.06057266,105630.0,105620.0,0.22722823]
[1750165602780,0.0700393,105630.0,105620.0,0.22722823]
[1750165603244,0.60144626,105630.0,105620.0,0.21776105]
[1750165603469,0.60144626,105630.0,105620.0,0.22722841]
[1750165603717,0.60144626,105630.0,105620.0,0.23669568]
[1750165603927,0.41210612,105630.0,105620.0,0.23669568]
[1750165604146,0.07950612,105630.0,105620.0,0.23669568]
[1750165604357,0.40263912,105630.0,105620.0,0.23669568]
[1750165604529,0.60144617,105630.0,105620.0,0.23669568]
[1750165605297,0.41210603,105630.0,105620.0,0.23669568]
[1750165605507,0.60144617,105630.0,105620.0,0.22722841]
[1750165605744,0.59197997,105630.0,105620.0,0.22722841]
[1750165605990,0.65437997,105630.0,105620.0,0.22722841]
[1750165607113,0.64491351,105630.0,105620.0,0.21776105]
[1750165608221,0.64491351,105630.0,105620.0,0.2082936]
[1750165608694,0.32178051,105630.0,105620.0,0.21776096]
[1750165608695,0.65438051,105630.0,105620.0,0.21776096]
[1750165609878,0.65438051,105630.0,105620.0,0.2082936]
[1750165610111,0.65438051,105630.0,105620.0,0.21776114]
[1750165610553,0.62218051,105630.0,105620.0,0.22722859]
[1750165611350,0.38370602,105630.0,105620.0,0.23669586]
[1750165611554,0.39317284,105630.0,105620.0,0.23669586]
[1750165611704,0.64811298,105630.0,105620.0,0.22722859]
[1750165612111,0.32497998,105630.0,105620.0,0.22722859]
[1750165612339,0.64811298,105630.0,105620.0,0.22722859]
[1750165612542,0.32497998,105630.0,105620.0,0.22722859]
[1750165612757,0.64811298,105630.0,105620.0,0.22722859]
[1750165613192,0.64811298,105630.0,105620.0,0.23669595]
[1750165613392,0.62640689,105630.0,105620.0,0.23669595]
[1750165613560,0.66704689,105630.0,105620.0,0.23669595]
[1750165613988,0.05110638,105630.0,105620.0,0.23669532]
[1750165614244,0.06057266,105630.0,105620.0,0.26729532]
[1750165614447,0.06057258,105630.0,105620.0,0.26729532]
[1750165614878,0.0511062,105630.0,105620.0,0.26729532]
[1750165615674,0.0511062,105630.0,105620.0,0.29859532]
[1750165615891,0.06057258,105630.0,105620.0,0.29859532]
[1750165616167,0.0511062,105630.0,105620.0,0.29859532]
[1750165616386,0.001,105630.0,105620.0,0.29859532]
[1750165617049,0.34306566,105630.0,105620.0,0.23669532]
[1750165617270,0.3525323,105630.0,105620.0,0.23669532]
[1750165617708,0.35253239,105630.0,105620.0,0.23669532]
[1750165617944,0.36099921,105630.0,105620.0,0.23669532]
[1750165618169,0.36099921,105630.0,105620.0,0.23869532]
[1750165619046,0.35153239,105630.0,105620.0,0.23869532]
[1750165619700,0.34206566,105630.0,105620.0,0.23869532]
[1750165619934,0.34206566,105630.0,105620.0,0.23969532]
[1750165620146,0.3515323,105630.0,105620.0,0.23969532]
[1750165620575,0.36099912,105630.0,105620.0,0.23969532]
[1750165621422,0.0094662,105630.0,105620.0,0.23969532]
[1750165621636,0.01893258,105630.0,105620.0,0.30429532]
[1750165622311,0.0094662,105630.0,105620.0,0.30429532]
[1750165622521,0.01893258,105630.0,105620.0,0.30429532]
[1750165622734,0.02839913,105630.0,105620.0,0.30429532]
[1750165622941,0.01893258,105630.0,105620.0,0.30429532]
[1750165623383,0.02839913,105630.0,105620.0,0.30429532]
[1750165623896,0.35153213,105630.0,105620.0,0.23969532]
[1750165624110,0.0094662,105630.0,105620.0,0.27139532]
[1750165624320,0.01893258,105630.0,105620.0,0.30449532]
[1750165624536,0.02839913,105630.0,105620.0,0.27139532]
[1750165624745,0.01893258,105630.0,105620.0,0.27139532]
[1750165624953,0.0094662,105630.0,105620.0,0.27139532]
[1750165625189,0.01893249,105630.0,105620.0,0.27139532]
[1750165625813,0.0094662,105630.0,105620.0,0.27139532]
[1750165626039,0.01893258,105630.0,105620.0,0.27139532]
[1750165626179,0.02839913,105630.0,105620.0,0.27139532]
[1750165626392,0.01893258,105630.0,105620.0,0.27139532]
[1750165626596,0.38279424,105640.0,105630.0,0.22720671]
[1750165626813,0.06912681,105640.0,105630.0,0.22720671]
[1750165627007,0.35161981,105640.0,105630.0,0.22720671]
[1750165627224,0.06912618,105640.0,105630.0,0.22720671]
[1750165627467,0.05966052,105640.0,105630.0,0.25750671]
[1750165627731,0.05966052,105640.0,105630.0,0.28840671]
[1750165627732,0.05019513,105640.0,105630.0,0.28840671]
[1750165629084,0.04072965,105640.0,105630.0,0.28840671]
[1750165629293,0.05019513,105640.0,105630.0,0.28840671]
[1750165629517,0.04072965,105640.0,105630.0,0.28840671]
[1750165629737,0.05019504,105640.0,105630.0,0.28840671]
[1750165630186,0.05019504,105640.0,105630.0,0.29799998]